{"text_format":"1","workbook":"xlsx","n_sheets":4,"sheets":["Макрос1","log_book","ostat","group"],"not_rendered":{"charts":0,"images":0,"macros":1,"external_links":0,"defined_names":16,"comments":0,"pivot_tables":0},"unopened":[],"bounds":{"document_bytes":16777216,"sheet_cells":100000,"rows_first":2000,"rows_last":500,"rows_between":2000,"halvings":0,"cell_chars":16384,"cell_head_chars":4096},"cells_cut":0,"cells_raw":0,"read":"whole","date_system":"1900"}

{"sheet":"Макрос1","index":0,"n_rows":2,"n_cols":1,"rows_kept":2,"cut":false,"hidden":false,"merged":[]}
[{"$f":"ARGUMENT(\"src\",8)*ARGUMENT(\"dest\",8)*ARGUMENT(\"Sort\",4)*ARGUMENT(\"lvl\",1)*ARGUMENT(\"pval\")*RESULT(8)","v":1}]
[{"$f":"RETURN(EVALUATE(\"NestedList(src;dest;sort;lvl;pval)\"))","v":true}]

{"sheet":"log_book","index":1,"n_rows":7,"n_cols":16,"rows_kept":7,"cut":false,"hidden":false,"merged":[[3,12,3,13]]}
[]
[]
[]
[{"$f":"log_book!$A$7","v":"М-ц"},{"$f":"log_book!$B$7","v":"Дата"},{"$f":"log_book!$C$7","v":"Параметр"},{"$f":"log_book!$D$7","v":"Группа"},{"$f":"log_book!$E$7","v":"Наименование"},{"$f":"log_book!$F$7","v":"Доп.инфо"},{"$f":"log_book!$G$7","v":"Арт.номер"},{"$f":"log_book!$H$7","v":"Инв.номер"},{"$f":"log_book!$I$7","v":"Раздел"},{"$f":"log_book!$J$7","v":"Подраздел"},{"$f":"log_book!$K$7","v":"Сотрудник"},{"$f":"log_book!$L$7","v":"Отв.лицо"},{"$f":"SUBTOTAL(109,tabl_logbook[Кол.])","v":0}]
[null,null,null,"10. Дор. знаки"]
[]
["М-ц","Дата","Параметр","Группа","Наименование","Доп.инфо","Арт.номер","Инв.номер","Раздел","Подраздел","Сотрудник","Отв.лицо","Кол.","Ед.изм.","Сортировка","Связка"]

{"sheet":"ostat","index":2,"n_rows":46,"n_cols":13,"rows_kept":46,"cut":false,"hidden":false,"merged":[]}
["Группа","Наименование","Арт.номер","Инв.номер","Eд.изм.","Нач.ост.","Приход","Расход","Возврат","Списано","Кон.ост.","Номер","Связка"]
["01. Тех. жидкость","Антифриз G11",null,null,"кг.",0,0,0,0,0,0,null,"Антифриз G11 | Арт. | Инв."]
["01. Тех. жидкость","Жидкость AdBlue-SCR",null,null,"л.",0,0,0,0,0,0,null,"Жидкость AdBlue-SCR | Арт. | Инв."]
["01. Тех. жидкость","Стеклоомывающая жидкость -30",null,null,"л.",0,0,0,0,0,0,null,"Стеклоомывающая жидкость -30 | Арт. | Инв."]
["01. Тех. жидкость","Тормозная жидкость DOT-4",null,null,"кг.",0,0,0,0,0,0,null,"Тормозная жидкость DOT-4 | Арт. | Инв."]
["01. Тех. жидкость","Уайт-спирит С4-155/200",null,null,"л.",0,0,0,0,0,0,null,"Уайт-спирит С4-155/200 | Арт. | Инв."]
["01. Тех. жидкость","Электролит 1.27-1.28",null,null,"л.",0,0,0,0,0,0,null,"Электролит 1.27-1.28 | Арт. | Инв."]
["01. Тех. жидкость масленая","Масло ГДВ - HVLP-32",null,null,"л.",0,0,0,0,0,0,null,"Масло ГДВ - HVLP-32 | Арт. | Инв."]
["01. Тех. жидкость масленая","Масло ГДВ - ISO.VG46",null,null,"л.",0,0,0,0,0,0,null,"Масло ГДВ - ISO.VG46 | Арт. | Инв."]
["01. Тех. жидкость масленая","Масло ГДВ - Tellus.S2.V.46",null,null,"л.",0,0,0,0,0,0,null,"Масло ГДВ - Tellus.S2.V.46 | Арт. | Инв."]
["01. Тех. жидкость масленая","Масло ГДВ - ВМГЗ-60С",null,null,"л.",0,0,0,0,0,0,null,"Масло ГДВ - ВМГЗ-60С | Арт. | Инв."]
["01. Тех. жидкость масленая","Масло ДВГ - SAE.10W-40",null,null,"л.",0,0,0,0,0,0,null,"Масло ДВГ - SAE.10W-40 | Арт. | Инв."]
["01. Тех. жидкость масленая","Масло ДВГ - SAE.15W-40",null,null,"л.",0,0,0,0,0,0,null,"Масло ДВГ - SAE.15W-40 | Арт. | Инв."]
["01. Тех. жидкость масленая","Масло ДВГ - SAE.5W-40",null,null,"л.",0,0,0,0,0,0,null,"Масло ДВГ - SAE.5W-40 | Арт. | Инв."]
["01. Тех. жидкость масленая","Масло ДВГ - М-10ДМ",null,null,"л.",0,0,0,0,0,0,null,"Масло ДВГ - М-10ДМ | Арт. | Инв."]
["01. Тех. жидкость масленая","Масло КОМ - КС-19пА",null,null,"л.",0,0,0,0,0,0,null,"Масло КОМ - КС-19пА | Арт. | Инв."]
["01. Тех. жидкость масленая","Масло ТРС - SAE.80W-90",null,null,"л.",0,0,0,0,0,0,null,"Масло ТРС - SAE.80W-90 | Арт. | Инв."]
["01. Тех. жидкость масленая","Масло ТРС - ЛУКОЙЛ-ATF",null,null,"л.",0,0,0,0,0,0,null,"Масло ТРС - ЛУКОЙЛ-ATF | Арт. | Инв."]
["01. Тех. жидкость масленая","Масло ТРС - ТАД-17",null,null,"л.",0,0,0,0,0,0,null,"Масло ТРС - ТАД-17 | Арт. | Инв."]
["01. Тех. жидкость топливная","Бензин АИ-92",null,null,"л.",0,0,0,0,0,0,null,"Бензин АИ-92 | Арт. | Инв."]
["01. Тех. жидкость топливная","Бензин АИ-95",null,null,"л.",0,0,0,0,0,0,null,"Бензин АИ-95 | Арт. | Инв."]
["01. Тех. смазка","Смазка - Литол-24",null,null,"кг.",0,0,0,0,0,0,null,"Смазка - Литол-24 | Арт. | Инв."]
["02. Материалы строительные","Портландцемент M500",null,null,"кг.",0,0,0,0,0,0,null,"Портландцемент M500 | Арт. | Инв."]
["04. Инструменты измерительные","Пирометр TemPro 300","А00222",null,"шт.",0,0,0,0,0,0,null,"Пирометр TemPro 300 | Арт.А00222 | Инв."]
["04. Инструменты измерительные","Рулетка геодезическая 50х13",31263,null,"шт.",0,0,0,0,0,0,null,"Рулетка геодезическая 50х13 | Арт.31263 | Инв."]
["04. Инструменты измерительные","Рулетка измерительная РФ2-10-25",6828,null,"шт.",0,0,0,0,0,0,null,"Рулетка измерительная РФ2-10-25 | Арт.6828 | Инв."]
["04. Инструменты измерительные","Рулетка измерительная РФ2-5-19",6826,null,"шт.",0,0,0,0,0,0,null,"Рулетка измерительная РФ2-5-19 | Арт.6826 | Инв."]
["05. Мал. механизация","Бензиновый швонарезчик БШН-13/450",null,108020,"шт.",0,0,0,0,0,0,null,"Бензиновый швонарезчик БШН-13/450 | Арт. | Инв.108020"]
["05. Мал. механизация","Машина подметально-уборочная CHAMPION GS5562",null,10059730,"шт.",0,0,0,0,0,0,null,"Машина подметально-уборочная CHAMPION GS5562 | Арт. | Инв.10059730"]
["05. Мал. механизация","Машина подметально-уборочная CHAMPION GS5562",null,10059734,"шт.",0,0,0,0,0,0,null,"Машина подметально-уборочная CHAMPION GS5562 | Арт. | Инв.10059734"]
["09. Маш. аккумуляторы","АКБ - 6CT-132(4) 12В 860А",null,null,"шт.",0,0,0,0,0,0,null,"АКБ - 6CT-132(4) 12В 860А | Арт. | Инв."]
["09. Маш. аккумуляторы","АКБ - 6CT-190N(4) 12В 1100А",null,null,"шт.",0,0,0,0,0,0,null,"АКБ - 6CT-190N(4) 12В 1100А | Арт. | Инв."]
["09. Маш. аккумуляторы","АКБ - 6CT-60N(1) 12В 450А",null,null,"шт.",0,0,0,0,0,0,null,"АКБ - 6CT-60N(1) 12В 450А | Арт. | Инв."]
["09. Маш. аккумуляторы","АКБ - 6CT-88NR(0) 12В 760А",null,null,"шт.",0,0,0,0,0,0,null,"АКБ - 6CT-88NR(0) 12В 760А | Арт. | Инв."]
["09. Маш. фильтра","Фильтр МСЛ - ФМ009-1012005",null,null,"шт.",0,0,0,0,0,0,null,"Фильтр МСЛ - ФМ009-1012005 | Арт. | Инв."]
["10. Дор. знаки","01.18.01 - Сужение дороги",null,null,"шт.",0,0,0,0,0,0,null,"01.18.01 - Сужение дороги | Арт. | Инв."]
["10. Дор. знаки","01.18.02 - Сужение дороги",null,null,"шт.",0,0,0,0,0,0,null,"01.18.02 - Сужение дороги | Арт. | Инв."]
["10. Дор. знаки","01.18.03 - Сужение дороги",null,null,"шт.",0,0,0,0,0,0,null,"01.18.03 - Сужение дороги | Арт. | Инв."]
["10. Дор. знаки","01.19 - Двустороннее движение",null,null,"шт.",0,0,0,0,0,0,null,"01.19 - Двустороннее движение | Арт. | Инв."]
["10. Дор. знаки","01.20 - Пешеходный переход",null,null,"шт.",0,0,0,0,0,0,null,"01.20 - Пешеходный переход | Арт. | Инв."]
["10. Дор. знаки","01.23 - Дорожные работы",null,null,"шт.",0,0,0,0,0,0,null,"01.23 - Дорожные работы | Арт. | Инв."]
["10. Дор. инвентарь","Дорожное колесо RGK Q16E",null,null,"шт.",0,0,0,0,0,0,null,"Дорожное колесо RGK Q16E | Арт. | Инв."]
["10. Дор. инвентарь","Дорожное колесо RGK Q32E",null,null,"шт.",0,0,0,0,0,0,null,"Дорожное колесо RGK Q32E | Арт. | Инв."]
["11. Инвентарь хозяйственный","Лопата совковая песочная (тип2)",null,null,"шт.",0,0,0,0,0,0,null,"Лопата совковая песочная (тип2) | Арт. | Инв."]
["12. Спецодежда обувь","Ботинки утепленные с металлическим подноском","4208МТ",null,"пар.",0,0,0,0,0,0,null,"Ботинки утепленные с металлическим подноском | Арт.4208МТ | Инв."]
["12. Спецодежда рукавицы","Рукавицы брезентовые",null,null,"пар.",0,0,0,0,0,0,null,"Рукавицы брезентовые | Арт. | Инв."]

{"sheet":"group","index":3,"n_rows":33,"n_cols":18,"rows_kept":33,"cut":false,"hidden":false,"merged":[]}
["Группа",null,"Доп.инфо",null,"Арт.номер",null,"Инв.номер",null,"Раздел",null,"Раздел","Подраздел",null,"Раздел","Сотрудник",null,"Временный список","Формулой"]
["01. Тех. жидкость",null,null,null,6826,null,108020,null,"Мат.База",null,"Мат.База","АКТ - Износ",null,"Мат.База","Макоева М.Т.",null,"01. Тех. жидкость",{"$f":"IFERROR(INDEX(Инд,MATCH(1,INDEX((COUNTIF($R$1:R1,Инд)=0)*(Инд<>\"\"),0),0)),)","v":"01.18.01 - Сужение дороги"}]
["01. Тех. жидкость масленая",null,null,null,6828,null,10059730,null,"Админ.База",null,"Мат.База","АКТ - Недостача",null,"Подразделение","Беспалый А.А.",null,"01. Тех. жидкость масленая",{"$f":"IFERROR(INDEX(Инд,MATCH(1,INDEX((COUNTIF($R$1:R2,Инд)=0)*(Инд<>\"\"),0),0)),)","v":"01.18.02 - Сужение дороги"}]
["01. Тех. жидкость топливная",null,null,null,31263,null,10059734,null,"Тех.База",null,"Мат.База","АКТ - Порча",null,"Подразделение","Голоубицкий И.С.",null,"01. Тех. жидкость топливная",{"$f":"IFERROR(INDEX(Инд,MATCH(1,INDEX((COUNTIF($R$1:R3,Инд)=0)*(Инд<>\"\"),0),0)),)","v":"01.18.03 - Сужение дороги"}]
["01. Тех. смазка",null,null,null,"4208МТ",null,null,null,"Тех.База_АТС-Д",null,"Мат.База","Склад ТМЦ",null,"Подразделение","Датдеев А.Т.",null,"01. Тех. смазка",{"$f":"IFERROR(INDEX(Инд,MATCH(1,INDEX((COUNTIF($R$1:R4,Инд)=0)*(Инд<>\"\"),0),0)),)","v":"01.19 - Двустороннее движение"}]
["02. Материалы строительные",null,null,null,"А00222",null,null,null,"Тех.База_АТС-А",null,"Мат.База","ТТН - Контрагент",null,"Подразделение","Катинов Рус.Х.",null,"02. Материалы строительные",{"$f":"IFERROR(INDEX(Инд,MATCH(1,INDEX((COUNTIF($R$1:R5,Инд)=0)*(Инд<>\"\"),0),0)),)","v":"01.20 - Пешеходный переход"}]
["04. Инструменты измерительные",null,null,null,null,null,null,null,"Тех.База_СТС",null,"Мат.База","ЧЕК - Торг.сеть",null,"Подразделение","Копылов И.И.",null,"04. Инструменты измерительные",{"$f":"IFERROR(INDEX(Инд,MATCH(1,INDEX((COUNTIF($R$1:R6,Инд)=0)*(Инд<>\"\"),0),0)),)","v":"01.23 - Дорожные работы"}]
["05. Мал. механизация",null,null,null,null,null,null,null,"Тех.База_ДМ",null,"Партнеры","ПК-Воскресенск",null,"Подразделение","Сухарева А.А.",null,"05. Мал. механизация",{"$f":"IFERROR(INDEX(Инд,MATCH(1,INDEX((COUNTIF($R$1:R7,Инд)=0)*(Инд<>\"\"),0),0)),)","v":0}]
["09. Маш. аккумуляторы",null,null,null,null,null,null,null,"Производ.База",null,"Партнеры","ПК-Высоковск",null,"Тех.База","Бойков А.В.",null,"09. Маш. аккумуляторы",{"$f":"IFERROR(INDEX(Инд,MATCH(1,INDEX((COUNTIF($R$1:R8,Инд)=0)*(Инд<>\"\"),0),0)),)","v":0}]
["09. Маш. фильтра",null,null,null,null,null,null,null,"Подразделение",null,"Партнеры","ПК-Егорьевск",null,"Тех.База","Горло В.В.",null,"09. Маш. фильтра",{"$f":"IFERROR(INDEX(Инд,MATCH(1,INDEX((COUNTIF($R$1:R9,Инд)=0)*(Инд<>\"\"),0),0)),)","v":0}]
["10. Дор. знаки",null,null,null,null,null,null,null,"Партнеры",null,"Партнеры","ПК-Кашира",null,"Тех.База","Катинов Рау.Х.",null,"10. Дор. знаки",{"$f":"IFERROR(INDEX(Инд,MATCH(1,INDEX((COUNTIF($R$1:R10,Инд)=0)*(Инд<>\"\"),0),0)),)","v":0}]
["10. Дор. инвентарь",null,null,null,null,null,null,null,null,null,"Партнеры","ПК-Красногорск",null,"Тех.База","Киселев В.А.",null,"10. Дор. инвентарь",{"$f":"IFERROR(INDEX(Инд,MATCH(1,INDEX((COUNTIF($R$1:R11,Инд)=0)*(Инд<>\"\"),0),0)),)","v":0}]
["11. Инвентарь хозяйственный",null,null,null,null,null,null,null,null,null,"Партнеры","ПК-Наро-Фоминск",null,"Тех.База","Мальков С.Е.",null,"11. Инвентарь хозяйственный",{"$f":"IFERROR(INDEX(Инд,MATCH(1,INDEX((COUNTIF($R$1:R12,Инд)=0)*(Инд<>\"\"),0),0)),)","v":0}]
["12. Спецодежда обувь",null,null,null,null,null,null,null,null,null,"Партнеры","ПК-Талдом",null,"Тех.База","Перфилов А.Ю.",null,"12. Спецодежда обувь",{"$f":"IFERROR(INDEX(Инд,MATCH(1,INDEX((COUNTIF($R$1:R13,Инд)=0)*(Инд<>\"\"),0),0)),)","v":0}]
["12. Спецодежда рукавицы",null,null,null,null,null,null,null,null,null,"Партнеры","ПК-Чехово",null,"Тех.База_АТС-А","Катинов Рау.Х.",null,"12. Спецодежда рукавицы",{"$f":"IFERROR(INDEX(Инд,MATCH(1,INDEX((COUNTIF($R$1:R14,Инд)=0)*(Инд<>\"\"),0),0)),)","v":0}]
[null,null,null,null,null,null,null,null,null,null,"Партнеры","ПК-Щелково",null,"Тех.База_АТС-А","Киселев В.А.",null,null,{"$f":"IFERROR(INDEX(Инд,MATCH(1,INDEX((COUNTIF($R$1:R15,Инд)=0)*(Инд<>\"\"),0),0)),)","v":0}]
[null,null,null,null,null,null,null,null,null,null,"Подразделение","Дор.Служба",null,"Тех.База_АТС-Д","Бойков А.В.",null,null,{"$f":"IFERROR(INDEX(Инд,MATCH(1,INDEX((COUNTIF($R$1:R16,Инд)=0)*(Инд<>\"\"),0),0)),)","v":0}]
[null,null,null,null,null,null,null,null,null,null,"Подразделение","Хоз.Служба",null,"Тех.База_АТС-Д","Киселев В.А.",null,null,{"$f":"IFERROR(INDEX(Инд,MATCH(1,INDEX((COUNTIF($R$1:R17,Инд)=0)*(Инд<>\"\"),0),0)),)","v":0}]
[null,null,null,null,null,null,null,null,null,null,"Производ.База","АБЗ",null,"Тех.База_АТС-Д","Мальков С.Е.",null,null,{"$f":"IFERROR(INDEX(Инд,MATCH(1,INDEX((COUNTIF($R$1:R18,Инд)=0)*(Инд<>\"\"),0),0)),)","v":0}]
[null,null,null,null,null,null,null,null,null,null,"Тех.База","Уч.Механизации",null,"Тех.База_АТС-Д","Перфилов А.Ю.",null,null,{"$f":"IFERROR(INDEX(Инд,MATCH(1,INDEX((COUNTIF($R$1:R19,Инд)=0)*(Инд<>\"\"),0),0)),)","v":0}]
[null,null,null,null,null,null,null,null,null,null,"Тех.База_АТС-А","ГАЗ - е 900 ре",null,"Тех.База_ДМ","Киселев В.А.",null,null,{"$f":"IFERROR(INDEX(Инд,MATCH(1,INDEX((COUNTIF($R$1:R20,Инд)=0)*(Инд<>\"\"),0),0)),)","v":0}]
[null,null,null,null,null,null,null,null,null,null,"Тех.База_АТС-Д","VOLVO - т 344 ев",null,"Тех.База_СТС","Киселев В.А.",null,null,{"$f":"IFERROR(INDEX(Инд,MATCH(1,INDEX((COUNTIF($R$1:R21,Инд)=0)*(Инд<>\"\"),0),0)),)","v":0}]
[null,null,null,null,null,null,null,null,null,null,"Тех.База_АТС-Д","VOLVO - т 373 ев",null,null,null,null,null,{"$f":"IFERROR(INDEX(Инд,MATCH(1,INDEX((COUNTIF($R$1:R22,Инд)=0)*(Инд<>\"\"),0),0)),)","v":0}]
[null,null,null,null,null,null,null,null,null,null,"Тех.База_АТС-Д","VOLVO - т 375 ев",null,null,null,null,null,{"$f":"IFERROR(INDEX(Инд,MATCH(1,INDEX((COUNTIF($R$1:R23,Инд)=0)*(Инд<>\"\"),0),0)),)","v":0}]
[null,null,null,null,null,null,null,null,null,null,"Тех.База_АТС-Д","АТЗ_ГАЗ - е 659 ру",null,null,null,null,null,{"$f":"IFERROR(INDEX(Инд,MATCH(1,INDEX((COUNTIF($R$1:R24,Инд)=0)*(Инд<>\"\"),0),0)),)","v":0}]
[null,null,null,null,null,null,null,null,null,null,"Тех.База_АТС-Д","КАМАЗ - е 195 ру",null,null,null,null,null,{"$f":"IFERROR(INDEX(Инд,MATCH(1,INDEX((COUNTIF($R$1:R25,Инд)=0)*(Инд<>\"\"),0),0)),)","v":0}]
[null,null,null,null,null,null,null,null,null,null,"Тех.База_АТС-Д","КАМАЗ - е 253 ру",null,null,null,null,null,{"$f":"IFERROR(INDEX(Инд,MATCH(1,INDEX((COUNTIF($R$1:R26,Инд)=0)*(Инд<>\"\"),0),0)),)","v":0}]
[null,null,null,null,null,null,null,null,null,null,"Тех.База_АТС-Д","КАМАЗ - у 097 рн",null,null,null,null,null,{"$f":"IFERROR(INDEX(Инд,MATCH(1,INDEX((COUNTIF($R$1:R27,Инд)=0)*(Инд<>\"\"),0),0)),)","v":0}]
[null,null,null,null,null,null,null,null,null,null,"Тех.База_ДМ","КАТОК - 7004 хе",null,null,null,null,null,{"$f":"IFERROR(INDEX(Инд,MATCH(1,INDEX((COUNTIF($R$1:R28,Инд)=0)*(Инд<>\"\"),0),0)),)","v":0}]
[null,null,null,null,null,null,null,null,null,null,"Тех.База_ДМ","КАТОК - 7009 хе",null,null,null,null,null,{"$f":"IFERROR(INDEX(Инд,MATCH(1,INDEX((COUNTIF($R$1:R29,Инд)=0)*(Инд<>\"\"),0),0)),)","v":0}]
[null,null,null,null,null,null,null,null,null,null,"Тех.База_СТС","JCB - 3043 мк",null,null,null,null,null,{"$f":"IFERROR(INDEX(Инд,MATCH(1,INDEX((COUNTIF($R$1:R30,Инд)=0)*(Инд<>\"\"),0),0)),)","v":0}]
[null,null,null,null,null,null,null,null,null,null,"Тех.База_СТС","Terex - 9312 хе",null,null,null,null,null,{"$f":"IFERROR(INDEX(Инд,MATCH(1,INDEX((COUNTIF($R$1:R31,Инд)=0)*(Инд<>\"\"),0),0)),)","v":0}]
[null,null,null,null,null,null,null,null,null,null,null,null,null,null,null,null,null,{"$f":"IFERROR(INDEX(Инд,MATCH(1,INDEX((COUNTIF($R$1:R32,Инд)=0)*(Инд<>\"\"),0),0)),)","v":0}]